bitfinex/quotes_BTCUSD_20230118
["timestamp","ask_amount","ask_price","bid_price","bid_amount"]
[1674049471814,0.79632169,21308.0,21307.0,0.093]
[1674049472162,0.79632169,21308.0,21306.0,0.27161106]
[1674049472356,0.488992,21307.0,21306.0,0.27161106]
[1674049472856,0.338992,21307.0,21306.0,0.27161106]
[1674049473630,0.338992,21307.0,21306.0,0.57161106]
[1674049473885,1.3525,21311.0,21306.0,1.51028569]
[1674049474139,1.2025,21311.0,21307.0,1.23867463]
[1674049474415,1.2025,21311.0,21308.0,0.93867463]
[1674049475195,1.2614,21312.0,21308.0,0.93867463]
[1674049475419,1.73860169,21312.0,21309.0,0.00092773]
[1674049475670,0.15,21311.0,21309.0,0.00092773]
[1674049475936,0.15,21311.0,21308.0,0.092]
[1674049476198,0.19072595,21310.0,21306.0,0.55154553]
[1674049476456,0.67221895,21309.0,21308.0,0.092]
[1674049476720,0.604621,21309.0,21308.0,0.092]
[1674049476978,1.08182269,21309.0,21308.0,0.092]
[1674049477261,0.80852269,21309.0,21308.0,0.092]
[1674049477777,0.319636,21309.0,21308.0,0.9386347]
[1674049478037,1.2614,21312.0,21308.0,1.2386347]
[1674049478297,0.47720169,21312.0,21309.0,0.9386347]
[1674049478610,0.47720169,21312.0,21308.0,0.00092777]
[1674049479598,2.55391479,21314.0,21309.0,0.93856836]
[1674049479892,1.83131648,21314.0,21309.0,1.03156836]
[1674049480136,1.83131648,21314.0,21310.0,0.93856836]
[1674049480390,1.83131648,21314.0,21309.0,0.093]
[1674049480650,0.334687,21313.0,21309.0,0.093]
[1674049480914,0.19072595,21313.0,21308.0,0.41197379]
[1674049481198,0.19072595,21313.0,21308.0,0.50497379]
[1674049481428,0.19072595,21313.0,21308.0,0.093]
[1674049481692,0.66792764,21312.0,21306.0,0.55154553]
[1674049481955,0.98704864,21311.0,21309.0,0.093]
[1674049482214,0.92183769,21310.0,21306.0,0.27161106]
[1674049482562,0.34651,21309.0,21308.0,0.093]
[1674049482734,0.34651,21309.0,21306.0,0.55154553]
[1674049482987,0.1232,21313.0,21307.0,0.51685014]
[1674049483244,1.35411479,21314.0,21308.0,0.3]
[1674049483245,0.47720169,21312.0,21308.0,0.3]
[1674049483551,0.47720169,21313.0,21308.0,0.3]
[1674049483816,0.66792764,21312.0,21306.0,0.64354553]
[1674049484103,0.98968564,21311.0,21306.0,0.38358485]
[1674049484355,0.78743169,21310.0,21308.0,0.093]
[1674049484611,0.323684,21309.0,21306.0,0.55154553]
[1674049484872,0.47720169,21310.0,21306.0,0.64354553]
[1674049485160,0.47720169,21310.0,21306.0,0.55154553]
[1674049485161,0.66792764,21310.0,21306.0,0.55154553]
[1674049485393,0.47720169,21310.0,21307.0,0.3]
[1674049485666,0.47720169,21310.0,21307.0,0.41197379]
[1674049485928,1.2095,21312.0,21307.0,0.57993447]
[1674049486183,0.01251479,21314.0,21308.0,0.51719393]
[1674049486496,0.47720169,21313.0,21309.0,0.41197379]
[1674049486702,0.47720169,21313.0,21308.0,0.11197379]
[1674049486958,0.66792764,21313.0,21308.0,0.11197379]
[1674049487755,0.66792764,21313.0,21309.0,0.11197379]
[1674049488003,0.66792764,21313.0,21308.0,0.27993447]
[1674049488004,0.47720169,21313.0,21308.0,0.27993447]
[1674049488262,0.66792764,21313.0,21309.0,0.3]
[1674049488551,0.47720169,21313.0,21309.0,0.41197379]
[1674049489191,0.47720169,21313.0,21309.0,0.57993447]
[1674049489410,0.01251479,21314.0,21309.0,0.57993447]
[1674049489645,0.01251479,21314.0,21312.0,0.1235]
[1674049489864,0.01251479,21314.0,21312.0,0.23547379]
[1674049490101,0.01251479,21314.0,21313.0,0.57993447]
[1674049490346,0.01251479,21314.0,21313.0,0.7061964]
[1674049490774,0.01251479,21314.0,21313.0,0.58026864]
[1674049490988,0.01251479,21314.0,21313.0,0.7049083]
[1674049491209,0.00751479,21314.0,21313.0,1.06862792]
[1674049491428,0.00751479,21314.0,21313.0,1.06955547]
[1674049491917,0.00751479,21314.0,21313.0,0.84631705]
[1674049492122,0.00751479,21314.0,21313.0,0.95852774]
[1674049492342,0.00751479,21314.0,21313.0,0.75325051]
[1674049492556,0.00751479,21314.0,21313.0,0.70622146]
[1674049492784,0.00751479,21314.0,21313.0,0.9864992]
[1674049492785,0.00160843,21314.0,21313.0,0.9864992]
[1674049493138,0.00160843,21314.0,21313.0,1.53333718]
[1674049493660,0.00160843,21314.0,21313.0,0.86385507]
[1674049493917,0.00160843,21314.0,21313.0,0.91144025]
[1674049494713,0.00160843,21314.0,21313.0,0.96757421]
[1674049494969,0.00160843,21314.0,21313.0,1.24521507]
[1674049495234,0.00160843,21314.0,21313.0,0.91081195]
[1674049495541,0.00160843,21314.0,21313.0,0.50613957]
[1674049495808,0.00160843,21314.0,21313.0,0.91081022]
[1674049496059,0.00160843,21314.0,21313.0,0.50613957]
[1674049496586,0.00160843,21314.0,21313.0,0.79918448]
[1674049496878,0.00160843,21314.0,21313.0,1.17770115]
[1674049497128,0.00160843,21314.0,21313.0,1.06554448]
[1674049497649,0.00160843,21314.0,21313.0,1.29009092]
[1674049497905,0.00160843,21314.0,21313.0,1.17765453]
[1674049498261,0.00160843,21314.0,21313.0,1.17764504]
[1674049498505,0.00160843,21314.0,21313.0,1.24527289]
[1674049498765,0.00160843,21314.0,21313.0,1.7298586]
[1674049499025,0.00160843,21314.0,21313.0,1.30883456]
[1674049499026,0.00019243,21314.0,21313.0,1.30883456]
[1674049499301,0.00019243,21314.0,21313.0,1.85282824]
[1674049499560,0.00019243,21314.0,21313.0,1.43181091]
[1674049499806,0.00019243,21314.0,21313.0,1.80775049]
[1674049500068,0.00019243,21314.0,21313.0,2.33225049]
[1674049500329,1.705e-05,21314.0,21313.0,3.56067849]
[1674049500582,1.705e-05,21314.0,21313.0,3.80341114]
[1674049500867,1.705e-05,21314.0,21313.0,3.89541114]
[1674049501089,1.705e-05,21314.0,21313.0,3.80341114]
[1674049501344,1.705e-05,21314.0,21313.0,4.24080764]
[1674049501590,1.705e-05,21314.0,21313.0,3.90607499]
[1674049501841,1.705e-05,21314.0,21313.0,5.22201248]
[1674049502100,1.705e-05,21314.0,21313.0,5.93221248]
[1674049502365,1.705e-05,21314.0,21313.0,5.71796528]
[1674049502619,1.705e-05,21314.0,21313.0,5.91411248]
[1674049502870,0.01262034,21315.0,21314.0,0.22250295]
[1674049503129,0.01262034,21315.0,21314.0,4.44369883]
[1674049503383,0.00312326,21317.0,21315.0,0.6175]
[1674049503638,0.00312326,21317.0,21316.0,2.70085335]
[1674049503888,0.00312326,21317.0,21316.0,4.74819285]
[1674049503889,0.00264555,21317.0,21316.0,4.74819285]
[1674049504140,0.01286775,21318.0,21316.0,5.74819285]
[1674049504393,0.01286775,21318.0,21317.0,4.09758257]
[1674049504681,0.01286775,21318.0,21317.0,3.91830386]
[1674049504913,0.01286775,21318.0,21317.0,4.64002743]
[1674049505163,0.01286775,21318.0,21317.0,3.23208994]
[1674049505424,0.01286775,21318.0,21317.0,2.85603685]
[1674049505688,0.01286775,21318.0,21317.0,2.23913685]
[1674049505978,0.01286775,21318.0,21317.0,2.51812467]
[1674049506223,0.01286775,21318.0,21317.0,2.74131802]
[1674049506720,0.01286775,21318.0,21317.0,2.4623302]
[1674049506972,0.01286775,21318.0,21317.0,1.944623]
[1674049507220,0.01286775,21318.0,21317.0,1.53178655]
[1674049507731,0.01286775,21318.0,21317.0,1.42019795]
[1674049507983,0.01286775,21318.0,21317.0,1.29639795]
[1674049508264,0.08478775,21318.0,21317.0,1.29639795]
[1674049508617,0.01286775,21318.0,21317.0,1.03009895]
[1674049508774,0.08478775,21318.0,21317.0,0.092]
[1674049509276,0.42276475,21318.0,21317.0,0.092]
[1674049509809,0.42276475,21318.0,21314.0,4.295e-05]
[1674049510065,0.49965695,21317.0,21314.0,4.295e-05]
[1674049510336,0.2045937,21318.0,21314.0,4.295e-05]
[1674049510594,0.2035937,21318.0,21314.0,0.9381762]
[1674049510848,0.2045937,21318.0,21317.0,0.077]
[1674049511109,0.2045937,21318.0,21314.0,0.12344295]
[1674049511110,0.01286775,21318.0,21314.0,0.12344295]
[1674049511350,0.001,21317.0,21315.0,0.93811079]
[1674049511599,0.01286775,21318.0,21315.0,0.93811079]
[1674049511860,0.01286775,21318.0,21314.0,4.295e-05]
[1674049512108,0.2035937,21318.0,21314.0,4.295e-05]
[1674049512355,0.01286775,21318.0,21315.0,0.00092746]
[1674049512637,0.01386775,21318.0,21315.0,0.00092746]
[1674049512894,0.01286775,21318.0,21315.0,0.00092746]
[1674049513150,0.01386775,21318.0,21315.0,0.00092746]
[1674049513398,0.01286775,21318.0,21316.0,0.93808817]
[1674049513719,0.01386775,21318.0,21317.0,0.3]
[1674049513908,0.0021334,21318.0,21317.0,0.3]
[1674049514146,0.0031334,21318.0,21317.0,0.3]
[1674049514423,0.0021334,21318.0,21317.0,0.3]
[1674049514673,0.0031334,21318.0,21317.0,0.3]
[1674049514932,0.0031334,21318.0,21317.0,0.93804181]
[1674049515199,0.0031334,21318.0,21317.0,1.50434481]
[1674049515452,0.0031334,21318.0,21317.0,1.74434481]
[1674049515700,0.0021334,21318.0,21317.0,1.97888981]
[1674049515962,0.01323938,21319.0,21318.0,0.07310565]
[1674049516225,0.01323938,21319.0,21318.0,1.31114746]
[1674049516469,0.01323938,21319.0,21318.0,0.37310565]
[1674049516726,0.01323938,21319.0,21318.0,0.30064565]
[1674049516987,0.08515938,21319.0,21318.0,0.30064565]
[1674049517233,0.01323938,21319.0,21318.0,1.23866809]
[1674049517482,0.01423938,21319.0,21318.0,1.32366809]
[1674049518527,0.01423938,21319.0,21318.0,0.38564565]
[1674049519026,0.01423938,21319.0,21318.0,1.32367619]
[1674049519793,0.01423938,21319.0,21318.0,1.32462431]
[1674049520811,0.01423938,21319.0,21318.0,1.32462628]
[1674049522640,0.01423938,21319.0,21318.0,1.94949788]
[1674049522889,0.01423938,21319.0,21318.0,2.82061484]
[1674049523154,0.01423938,21319.0,21318.0,2.11700679]
[1674049523429,0.01423938,21319.0,21318.0,2.11700539]
[1674049523698,0.01423938,21319.0,21318.0,2.36137175]
[1674049524016,0.01323938,21319.0,21318.0,1.86460451]
[1674049524497,0.01323938,21319.0,21318.0,2.49956535]
[1674049524750,0.01323938,21319.0,21318.0,2.48018371]
[1674049525024,0.01323938,21319.0,21318.0,2.27673168]
[1674049525340,0.01323938,21319.0,21318.0,2.36873168]
[1674049525540,0.01323938,21319.0,21318.0,2.25699463]
[1674049525798,0.00288744,21320.0,21318.0,2.59156535]
[1674049526056,0.00288744,21320.0,21319.0,1.93176536]
[1674049526322,0.00288744,21320.0,21319.0,2.49803436]
[1674049526595,0.00288744,21320.0,21319.0,2.26350436]
[1674049526843,0.00288744,21320.0,21319.0,2.15118502]
[1674049527356,0.00288744,21320.0,21319.0,1.8721972]
[1674049527627,0.00023758,21320.0,21319.0,2.41662124]
[1674049527952,0.00023758,21320.0,21319.0,2.99370392]
[1674049528150,0.00023758,21320.0,21319.0,1.9641972]
[1674049528669,0.00023758,21320.0,21319.0,2.24403475]
[1674049528924,0.00023758,21320.0,21319.0,2.46791128]
[1674049529704,0.00023758,21320.0,21319.0,1.93259146]
[1674049529965,0.00023758,21320.0,21319.0,2.04451128]
[1674049530223,0.00023758,21320.0,21319.0,1.82063475]
[1674049531007,0.00023758,21320.0,21319.0,2.12063475]
[1674049531538,0.00023758,21320.0,21319.0,2.04463528]
[1674049531843,0.00023758,21320.0,21319.0,1.5407972]
[1674049532549,0.00023758,21320.0,21319.0,1.6642972]
[1674049532820,0.00023758,21320.0,21319.0,2.68389988]
[1674049533098,0.00023758,21320.0,21319.0,3.10492392]
[1674049533849,0.0064552,21323.0,21320.0,0.15]
[1674049534103,0.0064552,21323.0,21322.0,0.39214457]
[1674049534439,0.0064552,21323.0,21322.0,1.84089677]
[1674049534638,0.0064552,21323.0,21322.0,1.95293808]
[1674049534946,0.0064552,21323.0,21322.0,2.25293808]
[1674049535480,0.0064552,21323.0,21322.0,1.8807502]
[1674049535753,0.0064552,21323.0,21322.0,1.9727502]
[1674049536006,0.00074839,21323.0,21322.0,1.9727502]
[1674049536782,0.00074839,21323.0,21322.0,2.1227502]
[1674049537067,0.00074839,21323.0,21322.0,1.9727502]
[1674049537574,0.00074839,21323.0,21322.0,2.30783288]
[1674049537847,0.00074839,21323.0,21322.0,2.30873845]
[1674049538127,0.00074839,21323.0,21322.0,1.55015577]
[1674049538404,0.00074839,21323.0,21322.0,1.82184404]
[1674049538666,0.00074839,21323.0,21322.0,1.54165577]
[1674049538927,0.00074839,21323.0,21322.0,2.04613193]
[1674049539467,0.07266839,21323.0,21322.0,1.14216724]
[1674049539912,0.00074839,21323.0,21322.0,1.44275575]
[1674049539915,0.00074839,21323.0,21322.0,1.66696738]
[1674049540179,0.00074839,21323.0,21322.0,1.44275575]
[1674049540441,0.00074839,21323.0,21322.0,1.82107749]
[1674049540706,0.00074839,21323.0,21322.0,1.54931296]
[1674049540975,0.00074839,21323.0,21322.0,2.26186602]
[1674049541234,0.00074839,21323.0,21322.0,2.12961896]
[1674049541489,0.00074839,21323.0,21322.0,1.76289696]
[1674049541745,0.00074839,21323.0,21322.0,2.07914455]
[1674049542006,0.00074839,21323.0,21322.0,1.96703273]
[1674049542272,0.00074839,21323.0,21322.0,2.07914455]
[1674049542525,0.00074839,21323.0,21322.0,1.84081296]
[1674049542778,0.00074839,21323.0,21322.0,2.0791342]
[1674049543034,0.00074839,21323.0,21322.0,1.79882424]
[1674049543291,0.00074839,21323.0,21322.0,1.96700288]
[1674049543568,0.00074839,21323.0,21322.0,1.70682424]
[1674049543802,0.00074839,21323.0,21322.0,1.79882424]
[1674049544326,0.00074839,21323.0,21322.0,1.96699131]
[1674049544595,0.00074839,21323.0,21322.0,1.74275803]
[1674049545077,0.00074839,21323.0,21322.0,1.85487989]
[1674049545337,0.00074839,21323.0,21322.0,1.61034223]
[1674049545602,0.00074839,21323.0,21322.0,1.74168075]
[1674049545858,0.00074839,21323.0,21322.0,1.96591403]
[1674049546653,0.00074839,21323.0,21322.0,1.61034515]
[1674049546915,0.00074839,21323.0,21322.0,2.07896749]
[1674049547176,0.00074839,21323.0,21322.0,1.14217704]
[1674049548568,0.14512839,21323.0,21322.0,1.0300533]
[1674049549013,0.45173039,21323.0,21322.0,1.0300533]
[1674049549274,0.45173039,21323.0,21322.0,0.092]
[1674049550072,0.45173039,21323.0,21320.0,0.020758]
[1674049550315,0.329562,21322.0,21321.0,0.9379876]
[1674049550569,0.00074839,21323.0,21322.0,0.037]
[1674049550837,0.00074839,21323.0,21322.0,1.2379876]
[1674049551091,0.00174839,21323.0,21322.0,1.2379876]
[1674049551347,0.00074839,21323.0,21322.0,1.2379876]
[1674049551886,0.00074839,21323.0,21322.0,0.9379876]
[1674049552159,0.07366839,21323.0,21322.0,0.086]
[1674049552708,1.02959092,21323.0,21322.0,0.086]
[1674049553475,1.00999408,21323.0,21322.0,0.086]
[1674049554055,0.53179239,21323.0,21320.0,0.020758]
[1674049554280,0.322096,21322.0,21321.0,0.93801601]
[1674049554570,0.00074839,21323.0,21321.0,0.93802485]
[1674049554831,0.08566839,21323.0,21322.0,0.006]
[1674049555095,0.52341139,21323.0,21322.0,0.006]
[1674049555530,0.72956253,21323.0,21322.0,0.006]
[1674049556053,1.00061308,21323.0,21322.0,0.006]
[1674049556566,0.86411308,21323.0,21320.0,0.320758]
[1674049556826,0.00174839,21323.0,21322.0,0.041]
[1674049557096,0.31579139,21323.0,21320.0,0.320758]
[1674049557349,0.00174839,21323.0,21322.0,0.08]
[1674049557597,0.00174839,21323.0,21320.0,0.43288174]
[1674049557598,0.00067755,21323.0,21320.0,0.43288174]
[1674049557878,0.329886,21322.0,21321.0,0.93799268]
[1674049558127,0.00067755,21323.0,21321.0,1.23799268]
[1674049558402,0.00067755,21323.0,21321.0,0.3]
[1674049558655,0.333419,21322.0,21321.0,0.3]
[1674049558918,0.00067755,21323.0,21321.0,0.3]
[1674049559199,0.00167755,21323.0,21322.0,0.93797742]
[1674049559468,0.07259755,21323.0,21322.0,0.93797742]
[1674049559724,0.00167755,21323.0,21322.0,0.93797567]
[1674049560016,0.00067755,21323.0,21320.0,0.13288174]
[1674049560282,0.319365,21322.0,21321.0,0.93798363]
[1674049560792,0.00167755,21323.0,21322.0,0.08]
[1674049561056,0.67279924,21323.0,21320.0,0.099758]
[1674049561313,0.32085,21322.0,21321.0,0.93801879]
[1674049561586,0.60087924,21323.0,21321.0,0.93801879]
[1674049561860,0.12367755,21323.0,21321.0,0.93801879]
[1674049562646,0.12367755,21323.0,21321.0,1.01701879]
[1674049562647,0.001,21322.0,21321.0,1.01701879]
[1674049562903,0.00067755,21323.0,21321.0,0.93801879]
[1674049563190,0.00167755,21323.0,21322.0,0.3]
[1674049563451,0.00167755,21323.0,21322.0,1.35014253]
[1674049563750,0.00019507,21323.0,21322.0,1.77297971]
[1674049564018,0.00019507,21323.0,21322.0,1.75889375]
[1674049564284,0.00019507,21323.0,21322.0,1.88239375]
[1674049564285,1.52e-05,21323.0,21322.0,1.88239375]
[1674049564594,1.52e-05,21323.0,21322.0,2.08631757]
[1674049564857,1.52e-05,21323.0,21322.0,2.08629788]
[1674049565114,1.52e-05,21323.0,21322.0,1.8059228]
[1674049565372,0.01350774,21326.0,21322.0,1.80645977]
[1674049565632,0.01350774,21326.0,21324.0,0.28037505]
[1674049566123,0.01350774,21326.0,21325.0,1.51839384]
[1674049566129,0.01350774,21326.0,21325.0,1.35016881]
[1674049566386,0.01350774,21326.0,21325.0,1.51839384]
[1674049566637,0.01350774,21326.0,21325.0,1.76985162]
[1674049566896,0.01350774,21326.0,21325.0,1.23801879]
[1674049567254,0.01350774,21326.0,21325.0,0.93801879]
[1674049567464,0.01350774,21326.0,21324.0,0.092]
[1674049567465,0.32994674,21326.0,21324.0,0.092]
[1674049567713,0.328994,21325.0,21324.0,0.0925174]
[1674049567966,0.34486474,21326.0,21324.0,0.20466742]
[1674049568227,0.01350774,21326.0,21325.0,0.93783444]
[1674049568515,0.01350774,21326.0,21325.0,1.04998446]
[1674049568748,0.01350774,21326.0,21325.0,1.32983444]
[1674049569268,0.01350774,21326.0,21325.0,1.44198446]
[1674049569521,0.01350774,21326.0,21325.0,1.86165682]
[1674049569805,0.01350774,21326.0,21325.0,2.12783382]
[1674049570031,0.01350774,21326.0,21325.0,1.88171392]
[1674049570296,0.01350774,21326.0,21325.0,1.86159821]
[1674049570560,0.01350774,21326.0,21325.0,1.71352513]
[1674049571128,0.01350774,21326.0,21325.0,2.2695695]
[1674049571335,0.01350774,21326.0,21325.0,2.4195695]
[1674049571586,0.0008839,21326.0,21325.0,2.48722405]
[1674049571841,0.0008839,21326.0,21325.0,2.73136262]
[1674049572136,0.0008839,21326.0,21325.0,2.82336274]
[1674049572619,0.0008839,21326.0,21325.0,2.82331257]
[1674049572620,0.0008839,21326.0,21325.0,3.02956946]
[1674049572885,0.0008839,21326.0,21325.0,2.76385301]
[1674049573140,0.0008839,21326.0,21325.0,2.44516471]
[1674049573410,0.0008839,21326.0,21325.0,2.53716471]
[1674049573666,0.01345547,21328.0,21325.0,2.53716471]
[1674049573667,0.0001,21330.0,21326.0,0.00088]
[1674049573926,0.0001,21330.0,21329.0,0.2344]
[1674049574184,0.00328043,21339.0,21331.0,9.097e-05]
[1674049574441,0.00328043,21339.0,21333.0,0.27983137]
[1674049574710,0.00328043,21339.0,21336.0,0.27983137]
[1674049574711,0.00318043,21339.0,21336.0,0.27983137]
[1674049574973,0.00128043,21339.0,21338.0,0.51516392]
[1674049575283,0.00128043,21339.0,21338.0,2.27888487]
[1674049575545,0.00128043,21339.0,21338.0,2.29105848]
[1674049575810,0.00128043,21339.0,21338.0,2.9145259]
[1674049576072,0.00128043,21339.0,21338.0,2.80284349]
[1674049576391,0.00128043,21339.0,21338.0,3.34036469]
[1674049576392,0.01642389,21339.0,21338.0,3.34036469]
[1674049576651,0.01642389,21339.0,21338.0,3.54454738]
[1674049577203,0.01642389,21339.0,21338.0,3.37668938]
[1674049577468,0.15,21347.0,21338.0,3.80812927]
[1674049577751,0.34072595,21347.0,21339.0,1.66735848]
[1674049578014,0.19072595,21347.0,21340.0,0.42076111]
[1674049578286,0.324113,21346.0,21341.0,0.3]
[1674049578546,0.19072595,21347.0,21341.0,0.3]
[1674049578811,0.51082195,21346.0,21340.0,0.15]
[1674049579081,0.97836064,21345.0,21340.0,0.15]
[1674049579346,0.325569,21344.0,21340.0,0.15]
[1674049579603,0.315537,21343.0,21341.0,0.00102667]
[1674049579881,0.33324,21348.0,21341.0,0.09302667]
[1674049579882,0.15,21348.0,21341.0,0.09302667]
[1674049580162,0.15,21346.0,21341.0,0.092]
[1674049580576,0.383762,21345.0,21341.0,0.092]
[1674049580834,0.331792,21344.0,21340.0,0.15]
[1674049581093,0.15,21346.0,21340.0,0.242]
[1674049581094,0.19072595,21346.0,21340.0,0.242]
[1674049581361,0.19072595,21346.0,21341.0,0.0747]
[1674049581673,0.15,21348.0,21341.0,0.0747]
[1674049581674,0.15,21348.0,21341.0,0.3747]
[1674049581899,1.2191,21349.0,21342.0,0.3]
[1674049582170,0.328702,21348.0,21342.0,0.3]
[1674049582424,0.330343,21347.0,21342.0,0.3747]
[1674049582686,0.52163395,21346.0,21341.0,0.1667]
[1674049582940,0.312504,21345.0,21341.0,0.0747]
[1674049583196,0.2722002,21348.0,21340.0,0.15]
[1674049583197,0.318465,21344.0,21342.0,0.0745]
[1674049583463,0.19072595,21348.0,21342.0,0.0745]
[1674049583724,0.0001,21350.0,21343.0,0.23427]
[1674049584013,0.19082595,21350.0,21342.0,0.0745]
[1674049584304,0.51012995,21349.0,21342.0,0.0745]
[1674049584586,0.50453695,21348.0,21342.0,0.1665]
[1674049584840,0.331523,21347.0,21342.0,0.1665]
[1674049585102,0.19072595,21347.0,21342.0,0.5585]
[1674049585651,0.19072595,21347.0,21342.0,0.4665]
[1674049585907,0.14172595,21347.0,21342.0,0.3745]
[1674049586166,0.0001,21350.0,21343.0,0.500158]
[1674049586436,0.19082595,21350.0,21344.0,0.04907832]
[1674049586717,0.19082595,21350.0,21345.0,0.04907832]
[1674049587146,0.32712,21349.0,21345.0,0.04907832]
[1674049587384,0.0747,21347.0,21340.0,0.15]
[1674049587605,0.51152495,21346.0,21340.0,0.15]
[1674049587838,0.312245,21345.0,21344.0,0.092]
[1674049588077,0.312245,21345.0,21341.0,0.25661]
[1674049588341,0.327044,21344.0,21341.0,0.25661]
[1674049588608,0.316046,21343.0,21340.0,0.15]
[1674049588865,0.317904,21342.0,21340.0,0.15]
[1674049589129,0.182,21345.0,21340.0,0.15]
[1674049589395,0.2245,21347.0,21341.0,0.04907832]
[1674049589681,0.34072595,21347.0,21342.0,0.04907832]
[1674049589940,0.316926,21346.0,21343.0,0.04907832]
[1674049590202,0.15,21348.0,21344.0,0.04907832]
[1674049590472,0.0001,21350.0,21347.0,0.074]
[1674049590730,0.0001,21350.0,21348.0,0.0747]
[1674049591282,1.017e-05,21350.0,21349.0,0.46429032]
[1674049591556,1.017e-05,21350.0,21349.0,0.823712]
[1674049592129,1.017e-05,21350.0,21349.0,0.77074105]
[1674049592443,9.662e-05,21352.0,21349.0,1.58112106]
[1674049592701,0.01514346,21355.0,21351.0,0.95136]
[1674049592971,0.01514346,21355.0,21354.0,1.0]
[1674049593234,0.01620909,21356.0,21354.0,2.12341132]
[1674049593235,0.00677609,21356.0,21354.0,2.12341132]
[1674049593498,0.00677609,21356.0,21355.0,1.233409]
[1674049593809,0.00677609,21356.0,21355.0,2.360009]
[1674049594081,0.00677609,21356.0,21355.0,3.17489732]
[1674049594351,0.00038031,21357.0,21355.0,3.75302069]
[1674049594612,0.17698,21366.0,21356.0,0.47720169]
[1674049594891,0.17698,21366.0,21355.0,2.62362905]
[1674049594892,0.19072595,21365.0,21359.0,0.0743]
[1674049595379,0.19072595,21365.0,21359.0,0.04907832]
[1674049595382,0.66792764,21364.0,21352.0,0.17777]
[1674049595663,0.51897095,21363.0,21356.0,0.15]
[1674049595931,0.51897095,21363.0,21353.0,0.19907832]
[1674049595932,0.19072595,21363.0,21359.0,0.0747]
[1674049596192,0.330673,21362.0,21356.0,0.25041]
[1674049596452,0.52451095,21361.0,21354.0,0.0754]
[1674049596722,0.50740795,21360.0,21353.0,0.15]
[1674049597007,0.52391795,21359.0,21353.0,0.19907832]
[1674049597272,0.15,21364.0,21357.0,0.074]
[1674049597541,0.15,21364.0,21358.0,0.54885632]
[1674049597542,0.15,21359.0,21358.0,0.54885632]
[1674049597837,0.15,21364.0,21358.0,0.19827832]
[1674049597838,0.32457,21364.0,21358.0,0.19827832]
[1674049598103,0.17336,21362.0,21359.0,0.31473732]
[1674049598391,0.19072595,21364.0,21359.0,0.0747]
[1674049598650,0.19072595,21363.0,21358.0,0.15]
[1674049598913,0.413457,21362.0,21358.0,0.15]
[1674049599193,0.45707,21361.0,21358.0,0.15]
[1674049599456,0.45707,21361.0,21354.0,0.24796]
[1674049599457,0.329119,21360.0,21354.0,0.17336]
[1674049599726,0.15,21361.0,21356.0,0.17254]
[1674049599727,0.51276695,21359.0,21356.0,0.17254]
[1674049599998,0.310461,21358.0,21354.0,0.0747]
[1674049600262,0.52154395,21357.0,21352.0,0.074]
[1674049600604,0.2245,21361.0,21352.0,0.074]
[1674049600605,0.15,21361.0,21353.0,0.05407832]
[1674049600882,0.17156,21361.0,21359.0,0.0745]
[1674049601145,0.17185,21364.0,21360.0,8.149693]
[1674049601416,0.17185,21364.0,21362.0,0.30955075]
[1674049601664,0.17185,21365.0,21363.0,0.5452]
[1674049602106,1.2227,21371.0,21364.0,0.55369232]
[1674049602109,0.01728806,21370.0,21364.0,0.744714]
[1674049602409,0.01728806,21370.0,21365.0,0.35407832]
[1674049602683,0.01728806,21370.0,21365.0,0.4226]
[1674049603248,0.01728806,21370.0,21366.0,0.05407832]
[1674049603503,0.01728806,21370.0,21367.0,0.17667832]
[1674049603767,0.01728806,21370.0,21367.0,0.47667832]
[1674049604025,0.01728806,21370.0,21367.0,0.4226]
[1674049604290,0.01728806,21370.0,21368.0,0.00102537]
[1674049604555,0.01728806,21370.0,21368.0,0.07348537]
[1674049604820,0.01728806,21370.0,21369.0,0.388111]
[1674049605097,0.01728806,21370.0,21369.0,0.74218932]
[1674049605364,0.01728806,21370.0,21369.0,0.688111]
[1674049605935,0.01728806,21370.0,21369.0,0.73514005]
[1674049606741,0.01728806,21370.0,21369.0,0.688111]
[1674049607289,0.01728806,21370.0,21366.0,0.1226]
[1674049607558,0.01728806,21370.0,21369.0,0.35643]
[1674049607838,0.01728806,21373.0,21369.0,1.24913669]
[1674049608104,0.01728806,21373.0,21370.0,0.83376798]
[1674049608370,0.0184508,21379.0,21372.0,2.0574]
[1674049608870,0.29258,21387.0,21372.0,2.0574]
[1674049608871,0.17118,21387.0,21378.0,1.67720169]
[1674049608876,0.17118,21387.0,21379.0,0.18573886]
[1674049609159,0.17118,21387.0,21384.0,0.23379]
[1674049609426,0.16119836,21385.0,21384.0,1.88765201]
[1674049609691,0.16997,21390.0,21384.0,1.09806032]
[1674049609977,0.6,21398.0,21384.0,1.09806032]
[1674049609978,0.00956937,21391.0,21389.0,0.23375]
[1674049610253,0.00956937,21391.0,21390.0,0.565194]
[1674049610539,0.00114053,21391.0,21390.0,2.22727294]
[1674049610803,0.00114053,21391.0,21390.0,0.8105079]
[1674049611076,0.00114053,21391.0,21390.0,1.09628791]
[1674049611329,0.00114053,21391.0,21390.0,0.5650079]
[1674049611586,1.858e-05,21391.0,21390.0,1.8091079]
[1674049611860,1.858e-05,21391.0,21390.0,2.38741696]
[1674049612123,1.858e-05,21391.0,21390.0,3.3618247]
[1674049612400,0.01903149,21394.0,21390.0,4.42921696]
[1674049612689,0.01903149,21394.0,21393.0,1.23365]
[1674049612951,0.01903149,21394.0,21393.0,2.52039469]
[1674049613216,0.01903149,21394.0,21393.0,1.044893]
[1674049613484,0.01903149,21394.0,21393.0,2.52209469]
[1674049613741,0.01903149,21394.0,21393.0,3.06009469]
[1674049614231,0.002,21399.0,21393.0,5.41759469]
[1674049614517,0.17823,21408.0,21403.0,0.47720169]
[1674049614770,0.25,21426.0,21423.0,0.47720169]
[1674049615032,0.25,21426.0,21419.0,0.23343]
[1674049615033,4.70331657,21426.0,21419.0,0.23343]
[1674049615295,4.70331657,21426.0,21417.0,0.41435144]
[1674049615296,0.6,21420.0,21416.0,0.04870462]
[1674049615567,0.6,21417.0,21416.0,0.04870462]
[1674049615837,0.338255,21417.0,21415.0,0.11725217]
[1674049616099,1.0772,21423.0,21415.0,0.11725217]
[1674049616363,0.4122,21423.0,21416.0,1.47720169]
[1674049616901,0.4122,21423.0,21421.0,1.0]
[1674049617183,0.018683,21429.0,21426.0,0.47720169]
[1674049617454,0.40919296,21440.0,21428.0,2.56814169]
[1674049617717,0.001,21440.0,21432.0,1.91047169]
[1674049617998,0.25056243,21442.0,21434.0,0.71046169]
[1674049618261,0.6,21433.0,21429.0,0.30878269]
[1674049618555,0.6826,21430.0,21427.0,0.2177]
[1674049618824,0.33191,21429.0,21424.0,0.37055679]